[Event "ETCC Open 2023"]
[Site "Budva"]
[Date "2023.11.11"]
[Round "1.39"]
[White "Markus, Robert"]
[Black "Kjartansson, Gudmundur"]
[Result "1-0"]
[ECO "A14"]
[WhiteElo "2582"]
[BlackElo "2449"]
[Annotator "TA"]
[PlyCount "123"]
[EventDate "2023.11.10"]
[EventType "team-tourn"]
[EventCountry "MNE"]
[SourceTitle "playchess.com"]
[Source "ChessBase"]
[SourceQuality "1"]
[WhiteTeam "Serbia"]
[BlackTeam "Iceland"]
[WhiteTeamCountry "SRB"]
[BlackTeamCountry "ISL"]
[TimeControl "40/5400+30:1800+30"]

{[%evp 11,123,0,24,-1,14,11,6,7,0,0,29,25,35,33,41,38,57,48,64,72,100,101,174,66,65,42,46,52,73,63,100,-32,-32,-24,-29,-47,-11,-14,0,0,0,0,0,0,0,0,6,0,0,0,7,0,0,0,0,0,0,0,0,-8,-6,-8,0,0,0,0,0,-14,0,0,0,-2,-2,-10,-10,-10,0,0,8,21,21,21,2262,2051,29960,29961,29964,29966,29961,29965,29962,29960,29955,29958,29955,29961,29968,29959,29972,29975,29979,29980,29980,29979,29980,29980,29980,29981,29981,29982,29982,29983,29984,29985]} 1. c4 {[%emt 0:00:06]} Nf6 {[%emt 0:02:55]} 2. g3 {[%emt 0:00:38]} e6 {[%emt 0:00:20]} 3. Bg2 {[%emt 0:00:11]} d5 {[%emt 0:00:08]} 4. Nf3 {[%emt 0:00:06]} Be7 {[%emt 0:02:03]} 5. O-O {[%emt 0:00:13]} O-O {[%emt 0:00:03]} 6. d3 {[%emt 0:00:07]} c5 {[%emt 0:01:01]} 7. Ne5 {[%emt 0:00:20] A14: English Opening: 1...e6 with b3 by White.} Nbd7 {[%emt 0:29:21]} (7... Qc7 $5 {[%cal Rc7e5]} 8. f4 Rd8 $11) 8. Nxd7 {[%emt 0:00:24]} Bxd7 {[%emt 0:00:34]} 9. e4 {[%emt 0:00:45][%cal Rc4d5] The position is equal.} Bc6 {[%emt 0:06:54][%cal Rd5e4]} 10. Qe2 {[%emt 0:15:26]} dxc4 {[%emt 0:12:11]} 11. dxc4 {[%emt 0:00:10] [#]} Qc8 $146 {[%emt 0:00:16]} ({Predecessor:} 11... Nd7 12. f4 Qc7 13. Nc3 Rad8 14. Be3 Bf6 15. e5 Bxg2 16. Qxg2 Be7 17. Qe4 a6 {1-0 Bernadskiy,V (2530)-Gavrilescu,D (2526) Rubinstein Memorial 59th 2023 (3)}) 12. Nc3 {[%emt 0:03:54]} b6 {[%emt 0:00:38]} 13. b3 {[%emt 0:04:44]} Nd7 {[%emt 0:07:36]} 14. f4 {[%emt 0:03:41]} Bb7 {[%emt 0:05:25]} 15. Bb2 {[%emt 0:02:53]} Nb8 {[%emt 0:01:33]} 16. Qg4 {[%emt 0:15:48][%cal Oc3d5] Threatens to win with Nd5!} g6 {[%emt 0:07:43] [#]} (16... f6 $16) 17. Rad1 {[%emt 0:04:59]} (17. f5 $1 $18) 17... Nc6 $14 {[%emt 0:01:59]} 18. Nb5 {[%emt 0:00:46] Hoping for f5.} a6 {[%emt 0:02:04]} 19. Nd6 {[%emt 0:01:45]} Bxd6 {[%emt 0:00:03]} 20. Rxd6 {[%emt 0:00:10] aiming for Bf6.} Rd8 {[%emt 0:01:29]} 21. Be5 {[%emt 0:11:55] White is much more active.} ({White should try} 21. e5 $16) 21... Rxd6 $15 {[%emt 0:04:05]} 22. Bxd6 {[%emt 0:00:07] This pair of bishops is nice.} Qd7 {[%emt 0:00:26]} 23. e5 {[%emt 0:08:43]} Nd4 {[%emt 0:01:24]} 24. Qh3 {[%emt 0:00:08]} Nf5 {[%emt 0:04:16] ...Ne3 is the strong threat.} 25. g4 {[%emt 0:02:08] Bxb7 would be deadly.} Nd4 {[%emt 0:04:36]} 26. Bxb7 {[%emt 0:06:40]} Qxb7 {[%emt 0:00:01]} 27. Qg2 {[%emt 0:00:09]} Qxg2+ {[%emt 0:00:03]} 28. Kxg2 $11 {[%emt 0:00:06][%mdl 4096] Endgame KRB-KRN} a5 {[%emt 0:00:07]} 29. Rb1 {[%emt 0:03:35]} h5 {[%emt 0:01:48]} 30. h3 {[%emt 0:00:09]} Ra7 {[%emt 0:01:19]} 31. a3 {[%emt 0:04:53]} Kg7 {[%emt 0:01:04]} 32. Kf2 {[%emt 0:02:37]} hxg4 {[%emt 0:00:52]} 33. hxg4 {[%emt 0:00:06]} g5 {[%emt 0:00:16]} 34. fxg5 {[%emt 0:00:53]} Kg6 {[%emt 0:00:15]} 35. Rb2 {[%emt 0:03:48]} Kxg5 {[%emt 0:00:13]} 36. Kg3 {[%emt 0:00:04]} Nc6 {[%emt 0:02:06]} 37. a4 {[%emt 0:02:45]} Nd4 {[%emt 0:00:44]} 38. Rf2 {[%emt 0:01:00]} Rd7 {[%emt 0:00:36]} 39. Kh3 {[%emt 0:00:52]} Kg6 {[%emt 0:00:49]} 40. Kh4 {[%emt 0:00:47]} Nc6 {[%emt 0:00:40]} 41. g5 {[%emt 0:07:04]} Nd4 {[%emt 0:06:13] White must now prevent ...Nf5+.} 42. Rf6+ {[%emt 0:04:48]} Kg7 {[%emt 0:00:20] With the idea ...Nf5+.} 43. Kg4 {[%emt 0:00:07]} Nc6 {[%emt 0:18:18]} 44. Kh5 {[%emt 0:04:02]} Nd8 {[%emt 0:00:05]} 45. g6 {[%emt 0:02:13]} fxg6+ {[%emt 0:03:57]} (45... Rxd6 $2 46. gxf7 Nxf7 47. Rg6+ Kf8 48. exd6 $18) 46. Rxg6+ {[%emt 0:00:06]} Kf7 $2 {[%emt 0:00:29][%mdl 8192] [#] Loses the game.} (46... Kh8 $11) 47. Kh6 $1 $18 {[%emt 0:01:29] White threatens Rf6+ and mate.} Rxd6 {[%emt 0:01:38] KRN-KR} 48. Rg7+ {[%emt 0:03:39] White mates.} Kf8 {[%emt 0:00:46]} 49. exd6 {[%emt 0:00:05] KR-KN} Nf7+ {[%emt 0:00:02]} 50. Kg6 {[%emt 0:00:10]} Nxd6 {[%emt 0:00:09]} 51. Ra7 {[%emt 0:01:45]} Ne4 {[%emt 0:00:12]} 52. Rb7 {[%emt 0:00:53]} Ke8 {[%emt 0:00:51]} 53. Rxb6 {[%emt 0:00:31]} Ke7 {[%emt 0:00:28]} 54. Ra6 {[%emt 0:02:34]} Nd2 {[%emt 0:00:21]} 55. Rxa5 {[%emt 0:00:27]} Nxb3 {[%emt 0:00:13]} 56. Rb5 {[%emt 0:00:20][%mdl 64] Deflection} Nd4 {[%emt 0:00:09]} 57. Rb6 {[%emt 0:00:34]} Nf3 {[%emt 0:01:16]} 58. a5 {[%emt 0:02:37][%cal Ba4a5,Ba5a6][%mdl 32]} Ne5+ {[%emt 0:00:01]} 59. Kg5 {[%emt 0:00:07]} Nxc4 {[%emt 0:00:10]} 60. Rb7+ {[%emt 0:00:04]} Kd6 {[%emt 0:01:06]} 61. a6 {[%emt 0:00:30]} Kc6 {[%emt 0:00:08]} 62. Rb8 {[%emt 0:00:41] Weighted Error Value: White=0.08 (flawless) /Black=0.18 (very precise)} 1-0

[Event "ETCC Open 2023"]
[Site "Budva"]
[Date "2023.11.11"]
[Round "1.40"]
[White "Heimisson, Hilmir Freyr"]
[Black "Ivic, Velimir"]
[Result "0-1"]
[ECO "A29"]
[WhiteElo "2377"]
[BlackElo "2557"]
[Annotator "RC"]
[PlyCount "108"]
[EventDate "2023.11.10"]
[EventType "team-tourn"]
[EventCountry "MNE"]
[SourceTitle "playchess.com"]
[Source "ChessBase"]
[SourceQuality "1"]
[WhiteTeam "Iceland"]
[BlackTeam "Serbia"]
[WhiteTeamCountry "ISL"]
[BlackTeamCountry "SRB"]
[TimeControl "40/5400+30:1800+30"]

1. c4 {[%emt 0:00:06]} e5 {[%emt 0:02:10]} 2. Nc3 {[%emt 0:00:54]} Nf6 {[%emt 0:01:13]} 3. Nf3 {[%emt 0:00:23]} Nc6 {[%emt 0:00:07]} 4. g3 {[%emt 0:00:24]} Nd4 {[%emt 0:05:49]} 5. Bg2 {[%emt 0:02:50]} Nxf3+ {[%emt 0:00:43]} 6. Bxf3 {[%emt 0:00:09]} Bb4 {[%emt 0:01:02]} 7. Qb3 {[%emt 0:04:12]} a5 {[%emt 0:01:42]} 8. O-O {[%emt 0:06:30]} O-O {[%emt 0:01:42]} 9. d4 {[%emt 0:07:09]} exd4 {[%emt 0:04:59]} 10. Nb5 {[%emt 0:00:22]} Bc5 {[%emt 0:03:10]} 11. Bf4 {[%emt 0:05:15]} d6 {[%emt 0:05:10]} 12. Rfd1 {[%emt 0:05:45]} Ng4 {[%emt 0:07:54]} 13. Nxd4 {[%emt 0:12:16]} Qf6 {[%emt 0:01:12]} 14. Qc3 {[%emt 0:03:20]} g5 {[%emt 0:10:03]} 15. Bxg4 {[%emt 0:06:04]} Bxg4 {[%emt 0:02:01]} 16. Be3 {[%emt 0:00:09]} Rfe8 {[%emt 0:01:36]} 17. f3 {[%emt 0:02:48]} Bd7 {[%emt 0:01:38]} 18. Bf2 {[%emt 0:01:05]} g4 {[%emt 0:01:10]} 19. Nb5 {[%emt 0:08:23]} Bxf2+ {[%emt 0:14:46]} 20. Kxf2 {[%emt 0:32:26]} Qh6 {[%emt 0:00:56]} 21. h4 {[%emt 0:00:00]} Bxb5 {[%emt 0:03:38]} 22. cxb5 {[%emt 0:00:00]} Re5 {[%emt 0:00:15]} 23. f4 {[%emt 0:00:00]} Rc5 {[%emt 0:01:33]} 24. Qd3 {[%emt 0:00:00]} Re8 {[%emt 0:02:03]} 25. Rac1 {[%emt 0:00:00]} Qe6 {[%emt 0:02:54]} 26. Rxc5 {[%emt 0:00:00]} dxc5 {[%emt 0:00:06]} 27. b3 {[%emt 0:00:00]} a4 {[%emt 0:03:33]} 28. Rc1 {[%emt 0:00:00]} axb3 {[%emt 0:01:12]} 29. axb3 {[%emt 0:00:00]} b6 {[%emt 0:00:52]} 30. Rc4 {[%emt 0:00:00]} Qe7 {[%emt 0:05:10]} 31. Ra4 {[%emt 0:00:00]} h5 {[%emt 0:03:35]} 32. Ra2 {[%emt 0:01:48]} Kg7 {[%emt 0:06:08]} 33. Qc3+ {[%emt 0:00:35]} Kg6 {[%emt 0:01:18]} 34. Qd3+ {[%emt 0:00:42]} Qe4 {[%emt 0:01:25]} 35. Ra7 {[%emt 0:01:38]} Qxd3 {[%emt 0:02:59]} 36. exd3 {[%emt 0:00:05]} Rc8 {[%emt 0:00:38]} 37. Ke3 {[%emt 0:00:50]} Kf5 {[%emt 0:00:14]} 38. d4 {[%emt 0:01:39]} cxd4+ {[%emt 0:02:06]} 39. Kxd4 {[%emt 0:00:59]} Rd8+ {[%emt 0:00:01]} 40. Ke3 {[%emt 0:00:42]} Rd7 {[%emt 0:00:49]} 41. b4 {[%emt 0:06:31]} Re7+ {[%emt 0:03:05]} 42. Kd3 {[%emt 0:00:27]} f6 {[%emt 0:02:25]} 43. Rb7 {[%emt 0:01:50]} Re1 {[%emt 0:06:27]} 44. Rxc7 {[%emt 0:03:45]} Rg1 {[%emt 0:00:10]} 45. Kd4 {[%emt 0:12:26]} Rxg3 {[%emt 0:00:30]} 46. Kd5 {[%emt 0:00:18]} Rb3 {[%emt 0:05:17]} 47. Kc6 {[%emt 0:02:25]} Rxb4 {[%emt 0:02:41]} 48. Kxb6 {[%emt 0:00:12]} g3 {[%emt 0:00:59]} 49. Rg7 {[%emt 0:03:47]} Kxf4 {[%emt 0:00:28]} 50. Kc5 {[%emt 0:00:59]} Rb1 {[%emt 0:01:01]} 51. Rg6 {[%emt 0:00:37]} Kf3 {[%emt 0:03:32]} 52. Rxf6+ {[%emt 0:01:34]} Kg4 {[%emt 0:00:05]} 53. b6 {[%emt 0:00:43]} g2 {[%emt 0:00:23]} 54. Rg6+ {[%emt 0:00:11]} Kh3 {[%emt 0:00:10]} 0-1

[Event "ETCC Open 2023"]
[Site "Budva"]
[Date "2023.11.11"]
[Round "1.41"]
[White "Dardha, Daniel"]
[Black "Teclaf, Pawel"]
[Result "1-0"]
[ECO "A11"]
[WhiteElo "2575"]
[BlackElo "2571"]
[Annotator "TA"]
[PlyCount "83"]
[EventDate "2023.11.10"]
[EventType "team-tourn"]
[EventCountry "MNE"]
[SourceTitle "playchess.com"]
[Source "ChessBase"]
[SourceQuality "1"]
[WhiteTeam "Belgium"]
[BlackTeam "Poland"]
[WhiteTeamCountry "BEL"]
[BlackTeamCountry "POL"]
[TimeControl "40/5400+30:1800+30"]

{[%evp 9,83,16,24,33,37,36,37,16,10,15,31,12,12,0,5,16,22,25,12,16,17,8,10,0,14,0,0,11,20,24,29,0,13,5,26,26,26,26,18,26,150,143,143,139,242,218,369,394,327,306,279,60,60,67,67,72,134,104,124,49,141,141,643,652,2276,1723,1825,1350,12837,12837,12838,12838,12837,12837,12840,12839]} 1. c4 {[%emt 0:00:05]} c6 {[%emt 0:00:06]} 2. Nf3 {[%emt 0:00:35]} d5 {[%emt 0:00:07]} 3. e3 {[%emt 0:00:19]} Nf6 {[%emt 0:00:53]} 4. Qc2 {[%emt 0:00:15]} Bg4 {[%emt 0:05:39]} 5. Ne5 {[%emt 0:00:16]} Be6 {[%emt 0:01:08]} 6. d4 {[%emt 0:02:38] [#] A11: English Opening: 1...c6.} dxc4 $146 {[%emt 0:03:23]} ({Predecessor:} 6... g6 7. cxd5 Nxd5 8. Nd3 Bg7 9. Nd2 O-O 10. Be2 a5 11. a3 Nd7 12. O-O Qb8 13. Rb1 {0-1 Deac,B (2572)-Fedoseev,V (2690) EU-ch 18th Minsk 2017 (8)}) 7. Bxc4 {[%emt 0:01:42]} Bxc4 {[%emt 0:01:18]} 8. Qxc4 {[%emt 0:00:54][%csl Ge5][%cal Rc4f7] White is slightly better.} e6 {[%emt 0:00:46]} 9. O-O {[%emt 0:07:00]} Nbd7 {[%emt 0:08:15]} 10. Nxd7 {[%emt 0:01:35]} Qxd7 {[%emt 0:01:54]} 11. Nc3 {[%emt 0:00:07]} Be7 {[%emt 0:02:21]} 12. Rd1 {[%emt 0:02:07]} a5 {[%emt 0:05:15]} 13. Qe2 {[%emt 0:08:44]} O-O {[%emt 0:07:14]} 14. e4 {[%emt 0:04:51][%cal Be3e4,Be4e5][%mdl 32]} b5 {[%emt 0:06:31]} 15. Bg5 {[%emt 0:03:40]} h6 {[%emt 0:07:37]} 16. Bh4 {[%emt 0:03:24]} Qb7 {[%emt 0:10:58]} 17. e5 {[%emt 0:09:55]} Nd5 {[%emt 0:00:53]} 18. Nxd5 {[%emt 0:01:07]} cxd5 {[%emt 0:07:50]} 19. Bxe7 {[%emt 0:00:43]} Qxe7 {[%emt 0:00:01]} 20. Rac1 {[%emt 0:07:39]} Rfc8 {[%emt 0:01:05]} 21. Qxb5 {[%emt 0:01:58]} Rxc1 {[%emt 0:03:44]} 22. Rxc1 {[%emt 0:00:09]} Qb4 {[%emt 0:00:02]} 23. Qxb4 {[%emt 0:06:07]} axb4 $11 {[%emt 0:00:04][%mdl 4096] Endgame KR-KR} 24. Ra1 {[%emt 0:00:24]} Rc8 {[%emt 0:01:53]} (24... Ra4 $11) 25. a4 $16 {[%emt 0:01:37]} bxa3 {[%emt 0:02:11]} 26. bxa3 {[%emt 0:02:07][%cal Bb2a3,Ba3a4,Ba4a5,Ba5a6][%mdl 32]} Rc4 {[%emt 0:00:29]} (26... g6 $16 {was necessary.} 27. Kf1 Kf8) 27. a4 $18 {[%emt 0:01:24]} Rxd4 $2 {[%emt 0:00:04]} (27... Kf8 28. a5 Rc7) 28. a5 {[%emt 0:00:05] aiming for a6.} Rc4 {[%emt 0:03:29]} 29. a6 {[%emt 0:02:31] And now a7 would win.} Rc8 {[%emt 0:00:03]} 30. Rb1 $2 {[%emt 0:01:14]} (30. a7 Ra8 $16) (30. f4 $18) 30... Ra8 $14 {[%emt 0:06:45]} 31. Rb6 {[%emt 0:00:54]} Rc8 {[%emt 0:02:36][%cal Rc8c1]} 32. f4 {[%emt 0:01:34][%cal Bf2f4,Bf4f5][%mdl 32] Hoping for a7.} Rc1+ {[%emt 0:02:29]} 33. Kf2 {[%emt 0:00:27]} Ra1 {[%emt 0:01:33] [#]} 34. Ke3 {[%emt 0:01:32]} (34. g4 $1 $16) 34... Ra4 {[%emt 0:02:12] [#]} (34... g5 $1 $14) 35. g4 $1 $16 {[%emt 0:07:41] Threatens to win with f5.} Kh7 $2 {[%emt 0:02:56][%mdl 8192] This costs Black the game.} (35... g6 $16 36. Rb8+ Kg7) 36. f5 $18 {[%emt 0:05:21] White is clearly winning.} Rxg4 {[%emt 0:02:30]} 37. a7 {[%emt 0:00:45]} (37. fxe6 fxe6 38. Rxe6 Ra4 $16) 37... Ra4 {[%emt 0:00:54]} 38. Rb7 {[%emt 0:00:05]} ({Weaker is} 38. fxe6 fxe6 39. Rxe6 (39. Rb7 Kg6 $15) 39... Rxa7 $11) 38... d4+ {[%emt 0:02:22]} 39. Kd3 {[%emt 0:00:34]} exf5 {[%emt 0:00:00]} 40. Rxf7 {[%emt 0:00:06]} Kg6 {[%emt 0:00:19]} 41. e6 {[%emt 0:30:26]} f4 {[%emt 0:15:57]} 42. Rc7 {[%emt 0:00:00] Weighted Error Value: White=0.17 (very precise) /Black=0.44} ({Inferior is} 42. Rxf4 Rxa7 43. Kc4 Ra2 $15) 1-0

[Event "ETCC Open 2023"]
[Site "Budva"]
[Date "2023.11.11"]
[Round "1.42"]
[White "Bartel, Mateusz"]
[Black "Glek, Igor"]
[Result "1-0"]
[ECO "A80"]
[WhiteElo "2651"]
[BlackElo "2435"]
[Annotator "TA"]
[PlyCount "103"]
[EventDate "2023.11.10"]
[EventType "team-tourn"]
[EventCountry "MNE"]
[SourceTitle "playchess.com"]
[Source "ChessBase"]
[SourceQuality "1"]
[WhiteTeam "Poland"]
[BlackTeam "Belgium"]
[WhiteTeamCountry "POL"]
[BlackTeamCountry "BEL"]
[TimeControl "40/5400+30:1800+30"]

{[%evp 9,103,71,106,88,100,109,120,114,159,160,181,141,177,196,181,188,186,148,160,140,146,140,139,128,144,133,156,116,122,121,133,137,138,113,123,56,75,79,72,64,85,58,59,62,68,21,195,191,314,322,333,333,322,321,314,0,0,0,0,-12,412,392,319,-64,-79,-89,-84,-88,-1,-44,-17,-10,0,0,0,0,0,0,7,9,42,5,2,11,10,0,1108,1202,931,786,29986,29987,29985,12830,12830,5964]} 1. d4 {[%emt 0:00:04]} f5 {[%emt 0:12:07]} 2. Bg5 {[%emt 0:00:25]} g6 {[%emt 0:00:15]} 3. Nc3 {[%emt 0:00:08]} Bg7 {[%emt 0:00:03]} 4. Nf3 {[%emt 0:00:09]} h6 {[%emt 0:09:59]} 5. Bd2 {[%emt 0:04:24]} e6 {[%emt 0:12:27]} 6. e4 $1 {[%emt 0:00:33] [#] A80: Dutch Defence: Unusual White second moves.} Ne7 $146 {[%emt 0:00:03]} ({Predecessor:} 6... fxe4 7. Nxe4 d5 8. Ng3 Nc6 9. Bd3 Nge7 10. c3 O-O 11. O-O Nf5 12. Qc2 g5 {1-0 Roiz,M (2579)-Moussard,J (2635) EU-Cup Online Gr-E rapid 2021 (4.2)}) 7. exf5 {[%emt 0:05:15]} exf5 {[%emt 0:00:05]} 8. h4 {[%emt 0:04:54] White is better.} d5 {[%emt 0:11:41]} 9. Bf4 {[%emt 0:01:38]} a6 {[%emt 0:14:35] Wards off Nb5} 10. Qe2 {[%emt 0:04:54]} O-O {[%emt 0:00:23]} 11. O-O-O {[%emt 0:04:09]} Nbc6 {[%emt 0:06:48]} 12. g3 {[%emt 0:04:47]} Bd7 {[%emt 0:05:14]} 13. Bg2 {[%emt 0:00:09]} Be8 {[%emt 0:00:12]} 14. Ne5 {[%emt 0:16:10]} Nxe5 {[%emt 0:02:06]} 15. dxe5 {[%emt 0:00:46]} c6 {[%emt 0:00:15]} 16. Qe3 {[%emt 0:00:07] Black is weak on the dark squares} Kh7 {[%emt 0:00:35]} 17. Na4 {[%emt 0:00:06] Nb6 is the strong threat.} Qa5 {[%emt 0:06:06]} 18. b3 {[%emt 0:04:56] Strongly threatening Qb6.} b5 {[%emt 0:04:04]} 19. Qc5 {[%emt 0:00:06]} Qd8 {[%emt 0:01:59]} 20. Nb2 {[%emt 0:01:20]} (20. Nb6 Rb8 $15) 20... Nc8 {[%emt 0:01:09]} 21. Nd3 {[%emt 0:01:16]} Rf7 {[%emt 0:04:22]} 22. e6 {[%emt 0:04:42]} (22. Rhe1 $16) 22... Rb7 {[%emt 0:01:40]} 23. Rhe1 {[%emt 0:06:00]} a5 {[%emt 0:03:41]} 24. Be5 {[%emt 0:00:07]} b4 {[%emt 0:00:19]} 25. Bxg7 {[%emt 0:03:11]} Rxg7 {[%emt 0:00:23]} 26. Qd4 {[%emt 0:03:27]} Nd6 {[%emt 0:01:05]} 27. Qe5 {[%emt 0:01:21]} (27. Nf4 $1 $14) 27... Raa7 $2 {[%emt 0:00:49]} (27... Qe7 $11) 28. Nf4 $1 $18 {[%emt 0:00:23][%cal Og2d5] Hoping for Bxd5!} a4 {[%emt 0:00:23] [#]} (28... Ne4 $142) 29. Bxd5 $1 {[%emt 0:02:14][%mdl 512]} cxd5 {[%emt 0:00:32]} 30. Nxd5 {[%emt 0:00:10]} (30. Rxd5 axb3 31. Qxd6 (31. Rxd6 Qc7 $11) 31... Qxd6 32. Rxd6 Rxa2 33. cxb3 Rc7+ 34. Kd1 g5 $11) 30... axb3 {[%emt 0:00:52]} 31. axb3 {[%emt 0:02:58]} (31. Nf6+ $6 Kh8 32. Rxd6 (32. Qxd6 $2 Qxf6 33. Qd4 Qxd4 $19) 32... Qc7 33. axb3 (33. Nxe8 $2 Qxc2#) 33... Ra2 $16) 31... Kh8 {[%emt 0:01:01]} 32. Nxb4 $2 {[%emt 0:06:03]} (32. Ne3 $18) 32... Qb6 $11 {[%emt 0:00:34][%csl LRb4,LRf2]} 33. Nd5 {[%emt 0:02:24]} Qc5 {[%emt 0:00:34]} 34. Nf6 {[%emt 0:00:33] Prevents Ne4} Qa3+ {[%emt 0:01:09][%mdl 8192]} (34... Qxf2 $2 35. Rxd6 $18 (35. Qxd6 Ra1+ 36. Kb2 Ra2+ {[%mdl 64] Skewer, Decoy} 37. Kxa2 Qxc2+ 38. Ka3 Ra7+) (35. Qxd6 Ra1+ 36. Kb2 Ra2+ {[%mdl 64] Skewer, Decoy} 37. Kxa2 Qxc2+ 38. Ka3 Ra7+ 39. Kb4 Rb7+ {[%mdl 64] Skewer} 40. Ka5 Qa2+)) (34... Qxe5 $1 $11 {and Black is okay.} 35. Rxe5 Ra1+ 36. Kd2 Rxd1+ 37. Kxd1 Re7) 35. Qb2 $18 {[%emt 0:01:44][%cal Od1d6] aiming for Rxd6!} Qb4 {[%emt 0:00:00]} 36. Nxe8 $2 {[%emt 0:01:19]} (36. e7 $18 Qa5 37. Kb1) 36... Nxe8 $15 {[%emt 0:00:08]} 37. Re3 {[%emt 0:00:40]} Kh7 {[%emt 0:00:22]} (37... Kg8 {with more complications.} 38. Rd8 Rge7 39. Qe5 h5) 38. Rd7 {[%emt 0:03:12][%cal Ob2g7]} Qb6 {[%emt 0:00:46]} ({Better is} 38... Re7 $17 39. Qd4 (39. Rd8 Qb5 $17) 39... Qxd4 40. Rxd4 Kg7) 39. h5 {[%emt 0:01:20]} gxh5 {[%emt 0:00:22] Black wants to play ...f4.} 40. Qe5 {[%emt 0:00:20]} Ra5 {[%emt 0:00:21]} 41. Rd5 {[%emt 0:30:25] Some like it hot} Rxd5 {[%emt 0:03:54]} 42. Qxd5 {[%emt 0:00:00]} Qa6 {[%emt 0:14:10] And now ...Kg6 would win.} 43. Qxf5+ {[%emt 0:00:00]} Kg8 {[%emt 0:00:12]} 44. Qxh5 {[%emt 0:00:00]} Nf6 {[%emt 0:04:17]} 45. Qe5 {[%emt 0:00:00] Active counter play!} (45. Qf3 $5 {[%cal Rf3f6]} Qa1+ 46. Kd2 Qa5+ 47. Kd1 Qa1+ 48. Kd2 Qa5+ 49. c3 $16) 45... Qf1+ $1 {[%emt 0:02:55]} 46. Kb2 {[%emt 0:00:00]} Qxf2 {[%emt 0:00:35]} 47. Rd3 {[%emt 0:00:00]} ({But not} 47. e7 $6 Ne8 $16) 47... Re7 $2 {[%emt 0:07:07][%mdl 8192] [#]} (47... Rg5 $11 48. Rd8+ (48. Qc7 Ne8 $11) 48... Kh7) 48. Rd4 $1 $18 {[%emt 0:00:00] Black must now prevent Rf4.} Ne8 {[%emt 0:00:45] [#]} 49. Rf4 $1 {[%emt 0:00:08]} Qa7 {[%emt 0:00:44] [#]} 50. Rf8+ $3 {[%emt 0:00:16][%mdl 576] Decoy, Back Rank} Kh7 {[%emt 0:00:29]} 51. Qh8+ {[%emt 0:00:41]} (51. g4 $142 Rg7 52. Qe4+ Rg6 53. Rf7+ Qxf7 54. exf7 Nd6 55. f8=N+ {[%mdl 64] Pin, Double Attack} Kg8 56. Qxg6+ Kxf8 57. Qxd6+ Kf7 58. c4) 51... Kg6 {[%emt 0:00:02]} 52. Rxe8 {[%emt 0:00:10] Artfully played by Bartel.   Weighted Error Value: White=0.28 (precise) /Black=0.41} 1-0